[Event "1st Serbian League 2022"]
[Site "Vrnjacka Banja"]
[Date "2022.09.24"]
[Round "5.1"]
[White "Ter-Sahakyan, Samvel"]
[Black "Indjic, Aleksandar"]
[Result "1-0"]
[ECO "B13"]
[WhiteElo "2630"]
[BlackElo "2628"]
[Annotator "TA"]
[PlyCount "111"]
[EventDate "2022.09.20"]
[EventType "team-tourn"]
[EventCountry "SRB"]
[SourceTitle "playchess.com"]
[Source "ChessBase"]
[SourceQuality "1"]
[TimeControl "40/5400+30:1800+30"]

{[%evp 9,111,36,34,31,37,35,31,27,42,43,67,56,84,50,83,76,88,88,98,72,65,64,55,48,104,105,134,117,118,108,148,112,309,374,367,372,364,364,369,366,640,635,620,620,608,399,399,395,553,256,404,385,852,666,677,660,855,854,741,623,1181,1052,819,645,781,733,949,945,921,908,858,568,563,520,562,563,556,547,530,529,513,520,525,494,636,625,643,438,415,389,850,850,850,7172,7829,7889,7829,4372,932,842,29977,29978,29976,29978]} 1. e4 {[%emt 0:00:04]} c6 {[%emt 0:01:36]} 2. d4 {[%emt 0:02:16]} d5 {[%emt 0:00:46]} 3. exd5 {[%emt 0:01:04]} cxd5 {[%emt 0:01:21]} 4. Bd3 {[%emt 0:00:03]} Nc6 {[%emt 0:00:17]} 5. c3 {[%emt 0:00:08][%cal Bc2c3,Bc3c4][%mdl 32]} e6 {[%emt 0:00:57]} 6. Nf3 {[%emt 0:02:48] B13: Caro-Kann: Exchange Variation and Panov-Botvinnik Attack.} Bd6 {[%emt 0:00:29]} 7. O-O {[%emt 0:00:13][%cal Bh1f1,Bf1e1,Be1e2][%mdl 32]} Nge7 {[%emt 0:01:03]} 8. Re1 {[%emt 0:08:10] White is slightly better.} Qc7 {[%emt 0:02:43]} 9. b3 $5 {[%emt 0:03:01][%mdl 4] [#] An interesting side line.} Bd7 $146 {[%emt 0:02:06]} ({Predecessor:} 9... b6 10. c4 Bb4 11. Re3 Bb7 12. a3 Bd6 13. Nc3 O-O-O 14. Nb5 Qd7 15. Nxd6+ Qxd6 {1-0 (44) Wei,Y (2732)-Zhao,J (2638) Xinghua 2020}) 10. c4 {[%emt 0:02:39]} Bb4 {[%emt 0:23:44] Inhibits Nc3.} 11. Re2 {[%emt 0:07:45]} a6 {[%emt 0:01:32][%cal Ob7b5]} 12. a3 {[%emt 0:16:03]} Ba5 {[%emt 0:04:26]} 13. c5 {[%emt 0:10:10] Hoping for b4.} Qb8 {[%emt 0:00:24]} 14. h4 {[%emt 0:02:14]} (14. Bc2 {keeps more tension.} O-O 15. Nc3 Bxc3 16. Qd3) 14... h6 {[%emt 0:02:23][%cal Og7g5]} 15. b4 {[%emt 0:04:48]} Bc7 {[%emt 0:00:14][%cal Og7g5]} 16. Nc3 {[%emt 0:00:03]} g5 {[%emt 0:01:28]} ({Black should try} 16... O-O $14) 17. b5 $16 {[%emt 0:04:24]} (17. hxg5 hxg5 18. g4 (18. Bxg5 $2 Bh2+ 19. Kf1 Bf4 $19) 18... f6 $17) 17... axb5 {[%emt 0:02:17]} 18. Nxb5 {[%emt 0:00:05]} f6 {[%emt 0:07:43]} 19. Rb1 {[%emt 0:08:00] White is more active.} g4 {[%emt 0:04:24]} 20. Ne1 {[%emt 0:00:07] Threatens to win with Reb2.} g3 $2 {[%emt 0:02:24] A mistake that costs the game.} (20... h5 $16) 21. Reb2 $18 {[%emt 0:03:10]} gxf2+ {[%emt 0:13:07]} 22. Rxf2 {[%emt 0:00:05]} Bh2+ {[%emt 0:00:52]} 23. Kh1 {[%emt 0:01:54]} f5 {[%emt 0:00:08]} 24. Rfb2 {[%emt 0:07:15]} Bc8 $2 {[%emt 0:03:49]} (24... b6 25. cxb6 Bf4) 25. Qh5+ {[%emt 0:02:26]} Kd7 {[%emt 0:00:44]} 26. Nf3 {[%emt 0:00:37]} Bf4 {[%emt 0:01:24]} 27. Qf7 {[%emt 0:03:34]} Bxc1 {[%emt 0:01:23]} 28. Rxc1 {[%emt 0:00:14] Chess con chili.} Qf4 {[%emt 0:01:00]} 29. Rf1 {[%emt 0:06:58]} (29. Re1 $142 Kd8 30. Nd6) 29... Kd8 {[%emt 0:05:19]} (29... Qg3 $142 30. Qf6 Rg8 31. Qxh6 Rg6) 30. Nd6 {[%emt 0:03:07]} Rxa3 $2 {[%emt 0:04:14]} (30... Rg8 31. Nxc8 Rxc8 32. Qxe6 Rg6) 31. Nxc8 {[%emt 0:00:12]} Kxc8 {[%emt 0:11:43] [#]} 32. Rfb1 $1 {[%emt 0:01:05]} Ra7 {[%emt 0:00:00]} (32... Qc7 33. Rxb7) 33. Qxe6+ {[%emt 0:00:05]} Kc7 {[%emt 0:00:00]} 34. Bb5 {[%emt 0:00:06] Bxc6 would kill now.} Rh7 {[%emt 0:00:00]} 35. Bxc6 {[%emt 0:00:55]} Nxc6 {[%emt 0:00:00]} 36. Qxd5 {[%emt 0:00:16] Black must now prevent Qg8.} Re7 {[%emt 0:00:00]} 37. Qb3 {[%emt 0:00:57]} Re3 {[%emt 0:00:16]} 38. Qf7+ {[%emt 0:00:07]} Re7 {[%emt 0:00:03]} 39. Qf6 {[%emt 0:00:45] Strongly threatening d5.} Rd7 {[%emt 0:00:35]} 40. d5 {[%emt 0:00:44]} Rxd5 {[%emt 0:00:15]} 41. Qf7+ {[%emt 0:01:58]} Rd7 {[%emt 0:00:12] [#]} 42. Rxb7+ $3 {[%emt 0:00:11][%mdl 512]} Rxb7 {[%emt 0:00:06]} 43. Rxb7+ {[%emt 0:00:04]} Kxb7 {[%emt 0:00:08]} 44. Qxd7+ {[%emt 0:00:02][%mdl 4096] Endgame KQN-KQN} Qc7 {[%emt 0:00:16]} 45. Qxf5 {[%emt 0:00:33]} Qe7 {[%emt 0:00:07]} 46. Kh2 {[%emt 0:01:53]} Qg7 {[%emt 0:00:12]} 47. Kh3 {[%emt 0:01:22]} Ka6 {[%emt 0:00:49]} 48. Qd3+ {[%emt 0:05:07]} Ka5 {[%emt 0:00:37]} 49. Nd2 {[%emt 0:01:32]} h5 $2 {[%emt 0:01:27]} (49... Ne5 50. Qf5 Qe7 51. Qxe5 Qd7+ 52. Kh2 Qxd2) 50. Qa3+ {[%emt 0:01:30]} Kb5 {[%emt 0:01:07]} 51. Qb3+ {[%emt 0:00:11]} Nb4 {[%emt 0:00:07]} 52. Qc4+ {[%emt 0:00:09]} Ka4 {[%emt 0:00:16]} 53. c6 {[%emt 0:01:36] Intending c7 and mate.} Qc7 {[%emt 0:00:22]} 54. Ne4 {[%emt 0:01:14] White wants to mate with Nc3+.} Ka5 {[%emt 0:01:33]} 55. Qc5+ {[%emt 0:00:32]} Ka4 {[%emt 0:00:08]} 56. Nc3+ {[%emt 0:00:16] Weighted Error Value: White=0.63/Black=0.51} 1-0

[Event "1st Serbian League 2022"]
[Site "Vrnjacka Banja"]
[Date "2022.09.24"]
[Round "5.2"]
[White "Ivanisevic, Ivan"]
[Black "Stojanovic, Mihajlo"]
[Result "1-0"]
[ECO "D30"]
[WhiteElo "2547"]
[BlackElo "2494"]
[Annotator "TA"]
[PlyCount "55"]
[EventDate "2022.09.20"]
[EventType "team-tourn"]
[EventCountry "SRB"]
[SourceTitle "playchess.com"]
[Source "ChessBase"]
[SourceQuality "1"]
[TimeControl "40/5400+30:1800+30"]

{[%evp 13,55,6,16,12,20,19,31,33,37,14,18,11,16,12,16,0,9,14,25,6,53,37,27,33,164,164,164,157,162,156,156,155,154,154,145,24,116,127,525,526,2205,553,2029,1757]} 1. d4 {[%emt 0:00:04]} d5 {[%emt 0:00:03]} 2. c4 {[%emt 0:00:06]} e6 {[%emt 0:00:06]} 3. Nf3 {[%emt 0:00:20]} Nf6 {[%emt 0:00:10]} 4. Bg5 {[%emt 0:00:06]} Nbd7 {[%emt 0:11:04]} 5. e3 {[%emt 0:01:13]} c6 {[%emt 0:03:55]} 6. Nbd2 {[%emt 0:00:47]} Be7 {[%emt 0:01:54]} 7. Bd3 {[%emt 0:02:04]} h6 {[%emt 0:00:42]} 8. Bh4 {[%emt 0:00:21] D30: Queen's Gambit Declined: Systems without Nc3.} b6 {[%emt 0:00:15]} 9. cxd5 {[%emt 1:29:59]} Nxd5 {[%emt 0:25:02]} 10. Bg3 {[%emt 0:00:00] White is slightly better.} O-O {[%emt 0:01:29]} 11. a3 {[%emt 0:00:00]} c5 {[%emt 0:04:02]} 12. O-O {[%emt 0:00:00]} Bb7 {[%emt 0:01:12]} 13. Rc1 {[%emt 0:00:00] [#]} Rc8 $146 {[%emt 0:04:06]} ({Predecessor:} 13... cxd4 14. Nxd4 Rc8 15. Qe2 Rxc1 16. Rxc1 Qa8 17. e4 N5f6 18. e5 Nd5 19. Qg4 Nc5 {½-½ (85) Hebden,M (2503)-Baburin,A (2552) England 2010}) 14. Nc4 {[%emt 0:00:00]} cxd4 {[%emt 0:02:29]} 15. Nxd4 {[%emt 0:00:00]} Nc5 {[%emt 0:04:45]} 16. Bb1 {[%emt 0:00:00] Black should prevent b4.} Ba6 {[%emt 0:18:10]} (16... Nf6 $11 {was preferrable.}) 17. b4 {[%emt 0:00:00][%cal Bb2b4,Bb4b5,Bb5a6][%mdl 32]} Ne4 {[%emt 0:03:37]} 18. b5 {[%emt 0:00:00]} Nxg3 {[%emt 0:05:59]} ({Black should try} 18... Nec3 $1 $14 19. Qd3 Nxb1) 19. fxg3 $18 {[%emt 0:00:00]} Nxe3 {[%emt 0:02:44]} (19... Rxc4 $2 20. Rxc4 Bc8 21. Nc6 $18) 20. Nxe3 {[%emt 0:00:00] Qd3 is the strong threat.} ({Worse is} 20. Qd3 Nf5 21. Nxf5 Bc5+ 22. Nfe3 Qxd3 23. Bxd3 Rfd8 $15) 20... Rxc1 {[%emt 0:00:08]} 21. Qxc1 {[%emt 0:00:00]} Qxd4 {[%emt 0:00:06]} 22. bxa6 $40 {[%emt 0:00:00][%mdl 128] White wants a kill.} Bc5 {[%emt 0:01:30] [#]} 23. Re1 {[%emt 0:00:00]} ({Much less strong is} 23. Rf3 Rd8 $16) 23... Rd8 {[%emt 0:04:09]} 24. h4 {[%emt 0:00:00]} ({Better is} 24. Kh1 $16) 24... Qa4 {[%emt 0:04:04]} (24... g5 $1 $11 {remains equal.}) 25. Kh2 $16 {[%emt 0:00:00]} Qxa6 $2 {[%emt 0:00:29][%mdl 8192]} (25... Qxa3 $16 {is a better chance.} 26. Qxa3 Bxa3) 26. Qc2 $18 {[%emt 0:00:00] Threatening mate with Qh7+. White is clearly winning.} Qxa3 {[%emt 0:00:46]} 27. Qh7+ {[%emt 0:00:00]} Kf8 {[%emt 0:00:03] [#]} 28. Nf5 $1 {[%emt 0:00:00][%mdl 512] Weighted Error Value: White=0.09 (flawless) /Black=0.50} 1-0

[Event "1st Serbian League 2022"]
[Site "Vrnjacka Banja"]
[Date "2022.09.24"]
[Round "5.4"]
[White "Miljkovic, Miroslav D"]
[Black "Ratkovic, Milovan"]
[Result "1/2-1/2"]
[ECO "D40"]
[WhiteElo "2456"]
[BlackElo "2411"]
[Annotator "TA"]
[PlyCount "33"]
[EventDate "2022.09.20"]
[EventType "team-tourn"]
[EventCountry "SRB"]
[SourceTitle "playchess.com"]
[Source "ChessBase"]
[SourceQuality "1"]
[TimeControl "40/5400+30:1800+30"]

{[%evp 24,33,-4,-4,0,0,-4,-10,19,6,46,54]} 1. d4 {[%emt 0:02:23]} d5 {[%emt 0:00:34]} 2. c4 {[%emt 0:00:40]} e6 {[%emt 0:00:24]} 3. e3 {[%emt 0:01:08]} Nf6 {[%emt 0:00:35]} 4. Nf3 {[%emt 0:00:37]} Be7 {[%emt 0:00:49]} 5. Nc3 {[%emt 0:10:25]} O-O {[%emt 0:00:24]} 6. Bd3 {[%emt 0:20:13]} dxc4 {[%emt 0:00:38]} 7. Bxc4 {[%emt 0:00:05]} a6 {[%emt 0:00:15]} 8. a4 {[%emt 0:06:29]} c5 {[%emt 0:09:32]} 9. O-O {[%emt 0:00:08]} cxd4 {[%emt 0:05:40]} 10. exd4 {[%emt 0:01:25]} Nc6 {[%emt 0:01:04]} 11. Re1 {[%emt 0:07:54]} Nb4 {[%emt 0:02:43]} 12. Bg5 {[%emt 0:17:03]} Bd7 {[%emt 0:01:00]} 13. Ne5 {[%emt 0:03:21]} Rc8 {[%emt 0:04:29] D40: Queen's Gambit Declined: Semi-Tarrasch with 5 e3.} 14. Qe2 {[%emt 0:07:54]} Be8 {[%emt 0:09:23]} 15. Rad1 {[%emt 0:01:39] [#]} Qa5 $146 {[%emt 0:04:34]} ({Predecessor:} 15... Nfd5 16. Nxd5 exd5 17. Bxe7 Qxe7 18. Bb3 a5 19. h3 Qd6 20. Qf3 Rc7 21. Rc1 Rxc1 {½-½ (21) Jedrzejowski,M (2502)-Morrow,W (2536) ICCF email 2017}) 16. Bb3 {[%emt 0:01:17]} Bd8 {[%emt 0:23:50]} 17. Qf3 {[%emt 0:02:44] Black got outplayed after the opening.  Weighted Error Value: White=0.00 (flawless) /Black=0.19 (very precise)} 1/2-1/2

[Event "1st Serbian League 2022"]
[Site "Vrnjacka Banja"]
[Date "2022.09.24"]
[Round "5.5"]
[White "Ratkovic, Miloje"]
[Black "Kosic, Dragan"]
[Result "1/2-1/2"]
[ECO "E11"]
[WhiteElo "2498"]
[BlackElo "2399"]
[Annotator "TA"]
[PlyCount "73"]
[EventDate "2022.09.20"]
[EventType "team-tourn"]
[EventCountry "SRB"]
[SourceTitle "playchess.com"]
[Source "ChessBase"]
[SourceQuality "1"]
[TimeControl "40/5400+30:1800+30"]

{[%evp 12,73,16,11,36,10,24,15,23,29,27,35,30,14,33,0,-2,-24,16,16,18,-161,-50,-58,0,0,0,0,0,0,0,0,38,34,29,5,47,15,141,57,108,0,18,-26,-30,-64,-63,-107,-116,-103,0,0,0,0,0,0,0,0,0,0,0,0,7,5]} 1. d4 {[%emt 0:00:12]} e6 {[%emt 0:00:19]} 2. c4 {[%emt 0:00:22]} Bb4+ {[%emt 0:00:29]} 3. Bd2 {[%emt 0:00:09]} Qe7 {[%emt 0:00:08]} 4. Nf3 {[%emt 0:00:05]} Nf6 {[%emt 0:00:07]} 5. e3 {[%emt 0:00:18]} b6 {[%emt 0:01:24]} 6. Bd3 {[%emt 0:00:21]} Bb7 {[%emt 0:01:02]} 7. O-O {[%emt 0:00:22]} Bxd2 {[%emt 0:00:22] E11: Bogo-Indian.} 8. Nfxd2 {[%emt 0:06:51]} c5 {[%emt 0:04:13]} 9. Nc3 {[%emt 0:02:53][%cal Od4d5] [#]} Nc6 $146 {[%emt 0:05:19]} ({Predecessor:} 9... O-O 10. dxc5 bxc5 11. e4 Qd6 12. Nf3 Qf4 13. Re1 Nc6 14. e5 Nd4 15. Nxd4 cxd4 16. exf6 dxc3 17. fxg7 Kxg7 18. bxc3 {0-1 (28) Strobel,N (1986)-Gross,T (2163) Berlin 2010}) 10. dxc5 {[%emt 0:06:52]} bxc5 {[%emt 0:01:44]} 11. Nde4 {[%emt 0:07:25]} Nxe4 {[%emt 0:07:30]} 12. Bxe4 {[%emt 0:04:42]} O-O {[%emt 0:01:52]} (12... f5 $5 {[%cal Rf5e4]} 13. Bf3 O-O $11) 13. Qa4 {[%emt 0:01:17]} f5 {[%emt 0:00:43]} 14. Bf3 {[%emt 0:02:31]} Rab8 {[%emt 0:01:50]} 15. Rad1 {[%emt 0:08:13]} f4 {[%emt 0:02:10]} 16. Nb5 $2 {[%emt 0:25:21] [#]} (16. Qc2 $11 {and White is okay.}) 16... fxe3 {[%emt 0:16:35]} (16... d5 $1 $19 {Hoping for ...Ne5.} 17. Be2 (17. cxd5 $2 Ne5 $19) 17... fxe3 18. fxe3 d4) 17. fxe3 $15 {[%emt 0:01:04]} Qg5 {[%emt 0:05:35]} (17... d5 $15 18. cxd5 Ne5 19. Qxa7 Ra8) 18. Qa3 $1 $11 {[%emt 0:03:03]} Nb4 {[%emt 0:33:57]} 19. Bxb7 {[%emt 0:00:16] Rxf8+ is the strong threat.} Rxf1+ {[%emt 0:01:09]} 20. Rxf1 {[%emt 0:00:11] Strongly threatening Be4.} Rxb7 {[%emt 0:00:11]} 21. Nd6 {[%emt 0:15:11]} ({Don't go for} 21. Nxa7 $2 Nc2 22. h4 (22. Qa6 $2 Qxe3+ 23. Kh1 Qd3 $19) 22... Qxe3+ 23. Qxe3 Nxe3 $19) 21... Rc7 {[%emt 0:01:30]} (21... Nc2 $5 {[%cal Rc2a3]} 22. Qa5 (22. Qa6 Qxe3+ 23. Kh1 Qd3 $17) 22... Rxb2 $11) 22. Qc3 {[%emt 0:08:35] Inhibits Nc2.} Nc6 {[%emt 0:05:45]} 23. Qd2 {[%emt 0:01:31]} h6 {[%emt 0:03:15]} 24. h3 {[%emt 0:01:09]} (24. Nf7 $5 {[%cal Rf7g5]} Qh5 25. Qd6 $16) 24... a6 {[%emt 0:01:42] [#]} (24... Ne5 $11) 25. Qf2 {[%emt 0:01:00] White is more active.} (25. Nf7 $1 $16 {[%cal Rf7g5]} Qh5 26. Qd6) 25... Ne5 {[%emt 0:01:51]} (25... Kh7 $1 $14) 26. Qf8+ {[%emt 0:01:36]} ({Better is} 26. Ne4 $16 Qe7 27. b3) 26... Kh7 {[%emt 0:00:04]} 27. Ne8 {[%emt 0:01:28] Really sharp!} Rb7 {[%emt 0:01:26]} 28. b3 {[%emt 0:00:33]} Qxe3+ {[%emt 0:00:48]} 29. Kh1 {[%emt 0:00:01][%csl Ge8][%cal Rf8g7]} d5 {[%emt 0:00:20]} 30. cxd5 {[%emt 0:00:23]} exd5 {[%emt 0:00:40]} (30... Ng6 $17 31. Qd6 Qe2) 31. Qf5+ {[%emt 0:00:14] The position is equal.} Ng6 $1 {[%emt 0:00:51]} 32. Qxd5 {[%emt 0:00:26]} Re7 {[%emt 0:00:15]} 33. Nd6 {[%emt 0:00:24]} Qe2 {[%emt 0:00:13][%csl LRa2,LRf1]} 34. Qc4 {[%emt 0:01:53]} ({But not} 34. Qf5 $2 Re6 35. Qf2 Qxf2 36. Rxf2 Rxd6 $19) 34... Qxc4 {[%emt 0:01:30]} 35. Nxc4 {[%emt 0:00:06]} Re2 {[%emt 0:00:04]} 36. a4 {[%emt 0:00:45]} Ne5 {[%emt 0:00:34]} 37. Nxe5 {[%emt 0:00:42] Weighted Error Value: White=0.30/Black=0.26 (precise)} 1/2-1/2

[Event "1st Serbian League 2022"]
[Site "Vrnjacka Banja"]
[Date "2022.09.24"]
[Round "5.6"]
[White "Laketic, Gojko"]
[Black "Dimic, Pavle"]
[Result "1/2-1/2"]
[ECO "E92"]
[WhiteElo "2255"]
[BlackElo "2352"]
[Annotator "TA"]
[PlyCount "107"]
[EventDate "2022.09.20"]
[EventType "team-tourn"]
[EventCountry "SRB"]
[SourceTitle "playchess.com"]
[Source "ChessBase"]
[SourceQuality "1"]
[TimeControl "40/5400+30:1800+30"]

{[%evp 33,107,20,23,4,65,62,64,56,63,66,119,118,117,39,64,57,66,42,156,154,154,130,142,139,130,129,125,109,127,126,175,0,150,0,0,-10,0,0,0,0,0,0,25,15,25,0,19,0,0,0,0,0,0,0,0,0,8,8,7,5,12,12,12,12,29,27,72,69,70,68,70,69,87,88,94,0]} 1. d4 {[%emt 0:00:18]} Nf6 {[%emt 0:00:07]} 2. c4 {[%emt 0:00:10]} g6 {[%emt 0:00:04]} 3. Nc3 {[%emt 0:00:14]} Bg7 {[%emt 0:00:10]} 4. e4 {[%emt 0:00:22]} d6 {[%emt 0:00:05]} 5. Be2 {[%emt 0:01:12]} O-O {[%emt 0:00:06]} 6. Nf3 {[%emt 0:00:42]} e5 {[%emt 0:00:05]} 7. d5 {[%emt 0:00:12]} a5 {[%emt 0:00:09]} 8. Bg5 {[%emt 0:00:15]} h6 {[%emt 0:00:05]} 9. Bh4 {[%emt 0:00:05]} Na6 {[%emt 0:00:12]} 10. Nd2 {[%emt 0:00:59]} Bd7 {[%emt 0:00:10]} 11. O-O {[%emt 0:03:14]} Qe8 {[%emt 0:00:10]} 12. Rb1 {[%emt 0:03:59]} Nh7 {[%emt 0:24:22]} 13. b3 {[%emt 0:01:29]} h5 {[%emt 0:00:29]} 14. f3 {[%emt 0:00:48]} Bh6 {[%emt 0:00:09]} 15. a3 {[%emt 0:01:06]} Be3+ {[%emt 0:05:39]} 16. Kh1 {[%emt 0:01:19]} Bc5 {[%emt 0:02:30]} 17. Qc1 {[%emt 0:02:40]} f5 {[%emt 0:03:31]} 18. Bf2 {[%emt 0:06:55] E92: King's Indian: Classical: 6 Be2 e5: 7 dxe5, 7 Be3 and Petrosian System without 7...Nbd7.} (18. exf5 {feels hotter.} gxf5 19. Na2 Qg6 20. b4) 18... f4 {[%emt 0:13:57]} (18... Bxf2 $11 19. Rxf2 f4) 19. Bxc5 $14 {[%emt 0:01:05] [#]} dxc5 $146 {[%emt 0:03:34]} ({Predecessor:} 19... Nxc5 20. Nb5 Na6 21. b4 axb4 22. axb4 g5 23. Na3 Qe7 24. c5 g4 25. Bxa6 g3 {½-½ (40) Schuetz,T (2285)-Visser,D Germany 1986}) 20. Nd1 {[%emt 0:12:27] White is slightly better.} Qe7 {[%emt 0:08:18]} 21. Nf2 {[%emt 0:01:40]} g5 {[%emt 0:02:19]} (21... b6 $14) 22. Qc3 $16 {[%emt 0:07:49]} b6 {[%emt 0:05:16]} 23. Rfe1 {[%emt 0:07:28]} ({Better is} 23. g3 $1 $16) 23... Rae8 {[%emt 0:03:38]} 24. Rg1 {[%emt 0:21:43]} Rf7 {[%emt 0:08:39]} 25. g3 {[%emt 0:00:45]} fxg3 {[%emt 0:04:34]} (25... Rg7 $1 $14) 26. Rxg3 {[%emt 0:00:29]} ({But not} 26. hxg3 $6 Rg7 $16) 26... Kh8 {[%emt 0:07:19]} 27. Nd3 {[%emt 0:05:01][%cal Of3f4] Black must now prevent f4!} Rg7 {[%emt 0:00:35]} 28. Rbg1 {[%emt 0:09:46][%cal Of3f4] f4! is the strong threat.} h4 {[%emt 0:00:26]} 29. R3g2 {[%emt 0:00:09][%cal Of3f4]} Bh3 {[%emt 0:00:16]} 30. Rf2 {[%emt 0:00:10][%cal Of3f4]} Bc8 {[%emt 0:03:34]} 31. Nf1 {[%emt 0:00:36] White is more active.} Nf6 {[%emt 0:00:19]} (31... Kg8 $16) 32. Nd2 $2 {[%emt 0:06:30]} (32. Rfg2 $1 $18 {[%cal Rg2g5]}) 32... Nh5 {[%emt 0:00:25]} (32... Nh7 $1 $11) 33. Nf1 $2 {[%emt 0:01:30]} (33. f4 $1 $16 Nxf4 34. Nxf4 exf4 35. Bh5) 33... Nf4 $11 {[%emt 0:00:58]} 34. Nxf4 {[%emt 0:00:26]} gxf4 {[%emt 0:00:46]} 35. Rxg7 {[%emt 0:00:38]} Qxg7 {[%emt 0:00:06]} 36. Rg2 {[%emt 0:00:39]} Qf6 {[%emt 0:00:07]} 37. Nd2 {[%emt 0:01:54]} Rg8 {[%emt 0:00:17]} 38. Rxg8+ {[%emt 0:00:55]} Kxg8 {[%emt 0:00:05]} 39. Qa1 {[%emt 0:01:13]} Kf7 {[%emt 0:02:03]} 40. Qg1 {[%emt 0:00:27]} h3 {[%emt 0:04:08]} 41. Qf2 {[%emt 0:30:40]} Qg5 {[%emt 0:03:26]} 42. Nb1 {[%emt 0:01:31]} Nb8 {[%emt 0:10:29]} 43. Bf1 {[%emt 0:00:00]} Qh5 {[%emt 0:00:30]} 44. Nc3 {[%emt 0:00:00]} Bd7 {[%emt 0:14:06]} 45. Be2 {[%emt 0:00:00]} Qg5 {[%emt 0:00:18]} 46. Qf1 {[%emt 0:00:00]} Qh4 {[%emt 0:00:32]} 47. Bd3 {[%emt 0:00:00]} Na6 {[%emt 0:01:38]} 48. Kg1 {[%emt 0:00:00][%cal Bh1g1,Bg1f1,Bf1e1][%mdl 32]} Nb8 {[%emt 0:01:33]} 49. Qf2 {[%emt 0:00:00]} Qg5+ {[%emt 0:00:04] [#]} 50. Kf1 $1 {[%emt 0:00:00]} Na6 {[%emt 0:00:40]} 51. Ke1 {[%emt 0:00:00]} Nb8 {[%emt 0:00:12]} 52. Bf1 {[%emt 0:00:00]} Na6 {[%emt 0:00:25]} 53. Ne2 {[%emt 0:00:00]} Nb8 {[%emt 0:00:29] [#]} 54. Nc3 {[%emt 0:00:04] Black defended with fortune.  Weighted Error Value: White=0.15 (very precise) /Black=0.18 (very precise)} (54. Nc1 $1 $16) 1/2-1/2

[Event "1st Serbian League 2022"]
[Site "Vrnjacka Banja"]
[Date "2022.09.24"]
[Round "5.7"]
[White "Demchenko, Anton"]
[Black "Ioannidis, Evgenios"]
[Result "1/2-1/2"]
[ECO "C50"]
[WhiteElo "2645"]
[BlackElo "2486"]
[Annotator "TA"]
[PlyCount "60"]
[EventDate "2022.09.20"]
[EventType "team-tourn"]
[EventCountry "SRB"]
[SourceTitle "playchess.com"]
[Source "ChessBase"]
[SourceQuality "1"]
[TimeControl "40/5400+30:1800+30"]

{[%evp 12,60,9,5,8,6,3,0,0,0,0,0,6,0,22,20,27,17,41,44,79,35,42,38,45,43,33,0,0,0,24,-14,-18,-18,-27,-23,0,0,-4,-54,-69,-88,-77,-77,-77,-77,-77,-83,-31,-43,0]} 1. e4 {[%emt 0:00:04]} e5 {[%emt 0:00:13]} 2. Nf3 {[%emt 0:00:08]} Nc6 {[%emt 0:00:17]} 3. Bc4 {[%emt 0:00:21]} Bc5 {[%emt 0:00:33]} 4. d3 {[%emt 0:00:08]} Nf6 {[%emt 0:00:23]} 5. Nc3 {[%emt 0:00:50]} h6 {[%emt 0:01:42]} 6. h3 {[%emt 0:01:23]} d6 {[%emt 0:01:48]} 7. Na4 {[%emt 0:00:39]} Bb6 {[%emt 0:00:17] C50: Hungarian Defence and Giuoco Pianissimo.} 8. c3 {[%emt 0:01:40] Recently 8.a3 got a lot of attention.} Ne7 {[%emt 0:02:05] [#]} 9. Nxb6 $146 {[%emt 0:01:21]} ({Predecessor:} 9. O-O Ng6 10. Re1 Qe7 11. d4 O-O 12. Bd3 Bd7 13. Nxb6 axb6 14. Bd2 Kh7 15. b3 {0-1 (45) Demchenko,A (2654)-Shyam,N (2442) Chess.com INT 2022}) 9... axb6 {[%emt 0:00:07] The position is equal.} 10. a4 Ng6 {[%emt 0:00:30]} 11. O-O O-O {[%emt 0:00:30]} 12. Re1 Be6 {[%emt 0:00:30]} 13. Bxe6 fxe6 {[%emt 0:00:30]} 14. b4 b5 {[%emt 0:00:30]} 15. a5 b6 {[%emt 0:00:30]} 16. Be3 (16. Qb3 $5 {[%cal Rb3e6]}) 16... bxa5 {[%emt 0:00:30]} 17. bxa5 c5 {[%emt 0:00:30]} 18. Qb3 {[%csl LRb5,LRe6]} Qd7 {[%emt 0:00:30]} 19. a6 (19. Reb1 $5 {[%cal Rb3b5]}) 19... Rfb8 {[%emt 0:00:30]} 20. Ra5 Ne7 {[%emt 0:00:30][%cal Bg6e7,Be7c6,Bc6b4][%mdl 32]} 21. Rea1 Ne8 {[%emt 0:00:30]} 22. Nh2 Nc7 {[%emt 0:00:30]} 23. Ng4 {[%cal Oe3h6]} Kh8 {[%emt 0:00:30]} 24. R5a2 Nc6 {[%emt 0:00:30]} 25. Qd1 (25. a7 $11 Rb7 26. Qb1) 25... b4 $1 $15 {[%emt 0:00:30] [#] aiming for ...Nb5.} 26. a7 Rb7 {[%emt 0:00:30] ...Nb5 is the strong threat.} 27. cxb4 Nxb4 {[%emt 0:00:30]} 28. Ra4 Nb5 {[%emt 0:00:30] Hoping for ...Nc3. Pair of Knights!} 29. Qd2 {Inhibits Nc3.} h5 {[%emt 0:00:30]} ({Much worse is} 29... Rbxa7 $6 30. Rxa7 Rxa7 31. Rxa7 Nxa7 32. Bxh6 $11) ({Black should try} 29... Kh7 $17) 30. Nh2 $1 ({But not} 30. Bxc5 dxc5 31. Nxe5 Qe8 $17) 30... Nc7 {[%emt 0:00:30] Weighted Error Value: White=0.08 (flawless) /Black=0.08 (flawless)} 1/2-1/2